bitfinex-derivatives/quotes_ETHF0:USTF0_20250518
["timestamp","ask_amount","ask_price","bid_price","bid_amount"]
[1747579590823,5.78179,2557.4,2557.3,6.8773102]
[1747579591135,0.78177,2557.5,2557.3,6.8773102]
[1747579591324,11.13077,2557.5,2557.4,2.9771]
[1747579591517,0.78177,2557.5,2557.4,2.9771]
[1747579591821,3.2078,2557.6,2557.4,3.09930986]
[1747579592018,3.2078,2557.6,2557.5,0.1221987]
[1747579592019,3.98955,2557.6,2557.5,0.1221987]
[1747579592618,0.78175,2557.6,2557.5,0.1221987]
[1747579592828,0.78179,2557.4,2557.3,6.8773102]
[1747579593017,10.349,2557.5,2557.3,6.99951182]
[1747579593222,3.2078,2557.9,2557.4,3.09930246]
[1747579593223,10.349,2557.8,2557.4,3.09930246]
[1747579593525,2.7899,2558.2,2557.6,3.2078]
[1747579593725,0.78163,2558.0,2557.7,2.90190246]
[1747579593928,0.78164,2557.9,2557.8,0.12220246]
[1747579594520,5.78164,2557.9,2557.8,0.12220246]
[1747579594919,6.42644,2557.9,2557.8,0.12220246]
[1747579595123,6.42644,2557.9,2557.4,2.7797]
[1747579595124,0.78176,2557.5,2557.4,2.7797]
[1747579595326,0.78176,2557.5,2557.4,2.90190283]
[1747579595525,14.33856,2557.5,2557.4,0.12220283]
[1747579595725,19.33856,2557.5,2557.4,0.12220283]
[1747579595924,22.93196,2557.5,2557.4,0.12220283]
[1747579596521,1.95471,2557.1,2556.5,1.39481607]
[1747579596722,3.98983,2556.6,2556.5,1.39481607]
[1747579596927,3.2078,2556.6,2556.5,4.17041607]
[1747579597228,5.9252,2556.9,2556.5,4.17041607]
[1747579597524,5.9252,2556.9,2556.5,11.70757344]
[1747579597727,5.9252,2556.9,2556.5,4.17041607]
[1747579597927,0.78201,2556.7,2556.5,4.17041607]
[1747579598226,5.9252,2556.9,2556.5,10.92552344]
[1747579598433,16.2742,2556.9,2556.5,4.17041607]
[1747579598721,16.2742,2556.9,2556.5,10.92552344]
[1747579598722,0.78196,2556.9,2556.5,10.92552344]
[1747579598924,0.782,2556.7,2556.5,10.92552344]
[1747579599129,0.78203,2556.6,2556.5,4.17041607]
[1747579599321,3.2078,2556.6,2556.0,3.2078]
[1747579599631,3.2078,2556.6,2556.5,2.7756]
[1747579599829,3.98983,2556.6,2556.5,2.7756]
[1747579600129,0.78199,2556.8,2556.5,9.53070737]
[1747579600431,3.2078,2557.1,2556.5,10.31275737]
[1747579600432,0.78196,2556.9,2556.5,10.31275737]
[1747579600629,13.5568,2557.1,2556.5,9.53070737]
[1747579600833,0.78195,2556.9,2556.5,10.31274737]
[1747579601026,0.78198,2556.8,2556.5,10.31274737]
[1747579601335,10.349,2557.0,2556.5,9.53070737]
[1747579601526,0.78199,2556.8,2556.5,9.53070737]
[1747579601724,0.78193,2557.0,2556.5,9.53070737]
[1747579601925,10.349,2557.0,2556.6,0.78202]
[1747579602130,0.78196,2556.9,2556.7,2.7257]
[1747579602529,0.78193,2557.0,2556.7,9.48080737]
[1747579602833,3.98977,2556.8,2556.7,2.7257]
[1747579603326,5.16274,2556.8,2556.0,5.4456265]
[1747579603630,0.78206,2556.5,2556.4,2.7852]
[1747579603820,14.33986,2556.5,2556.4,2.7852]
[1747579604317,0.78216,2556.2,2556.1,1.18320917]
[1747579604517,3.98996,2556.2,2556.1,3.96840917]
[1747579605635,3.98996,2556.2,2556.1,2.7852]
[1747579606130,3.98996,2556.2,2555.5,2.7687]
[1747579606131,0.78232,2555.7,2555.5,2.7687]
[1747579606324,0.78229,2555.8,2555.6,2.7845]
[1747579606518,3.99006,2555.9,2555.6,10.32193737]
[1747579606730,3.2078,2555.9,2555.7,0.7823]
[1747579606927,0.78223,2556.0,2555.7,3.5668]
[1747579607227,3.2078,2556.6,2555.7,12.74740737]
[1747579607532,11.01294815,2556.8,2556.2,0.78214]
[1747579607831,0.7821,2556.4,2556.3,2.7845]
[1747579608328,16.4149,2556.7,2556.3,2.7845]
[1747579608522,6.0639,2556.7,2556.4,0.12225133]
[1747579608726,3.2078,2556.7,2556.6,0.78203]
[1747579608933,0.01514815,2556.8,2556.6,0.90428133]
[1747579609233,0.01514815,2556.8,2556.7,3.71755133]
[1747579609629,0.01514815,2556.8,2556.7,10.4726587]
[1747579610132,0.01514815,2556.8,2556.7,9.6906276]
[1747579610333,0.01514815,2556.8,2556.7,10.4726276]
[1747579610527,0.01514815,2556.8,2556.7,9.6906276]
[1747579610728,0.01514815,2556.8,2556.7,10.4726276]
[1747579611339,0.01514815,2556.8,2556.7,13.6804276]
[1747579611635,0.01514815,2556.8,2556.7,14.86347839]
[1747579612236,0.01514815,2556.8,2556.7,10.87367687]
[1747579612431,0.01514815,2556.8,2556.7,11.65567687]
[1747579612632,0.79711815,2556.8,2556.7,10.87367687]
[1747579612830,0.79711815,2556.8,2556.7,2.93551871]
[1747579613029,0.01514815,2556.8,2556.7,2.93551871]
[1747579613337,0.01514815,2556.8,2556.7,10.47262608]
[1747579613639,0.01514815,2556.8,2556.7,2.93551871]
[1747579613835,0.79711815,2556.8,2556.7,2.93552248]
[1747579614333,0.01514815,2556.8,2556.7,2.93552248]
[1747579614538,0.01514815,2556.8,2556.7,9.69062985]
[1747579615035,0.79711815,2556.8,2556.7,2.93552248]
[1747579615435,0.01514815,2556.8,2556.7,2.93552248]
[1747579615631,0.79711815,2556.8,2556.7,2.93552248]
[1747579615837,0.01514815,2556.8,2556.7,2.93553492]
[1747579616034,0.01514815,2556.8,2556.7,3.71753492]
[1747579616238,0.01514815,2556.8,2556.7,2.93553492]
[1747579617039,0.01514815,2556.8,2556.7,13.68044229]
[1747579617637,0.01514815,2556.8,2556.7,13.68042492]
[1747579619341,0.78172,2557.7,2557.4,0.78177]
[1747579619536,3.2078,2557.9,2557.5,0.12221755]
[1747579619537,0.78175,2557.6,2557.5,0.12221755]
[1747579619836,0.78172,2557.7,2557.5,0.12221755]
[1747579620037,3.2078,2557.9,2557.6,0.12221755]
[1747579620342,11.13067,2557.8,2557.7,0.12221755]
[1747579620544,11.68697,2557.8,2557.7,0.12221755]
[1747579621247,11.13067,2557.8,2557.7,0.12221755]
[1747579621737,49.782,2558.0,2557.7,0.12221755]
[1747579621938,40.21561,2558.0,2557.8,0.12221755]
[1747579622138,0.78161,2558.0,2557.9,0.12221755]
[1747579622343,3.65523,2558.3,2558.0,0.7816]
[1747579622640,10.348,2558.6,2558.1,0.12221755]
[1747579622832,10.73837883,2558.8,2558.2,3.33001755]
[1747579623038,3.84119883,2558.8,2558.7,3.98919]
[1747579623337,3.84119883,2558.8,2558.7,3.33001755]
[1747579623542,0.00525668,2559.0,2558.7,10.08512492]
[1747579623743,0.00525668,2559.0,2558.3,20.49624]
[1747579623744,0.78133,2558.9,2558.8,2.85071755]
[1747579624043,0.78133,2558.9,2557.6,3.98952]
[1747579624044,0.78161,2558.0,2557.6,3.98952]
[1747579624250,3.2078,2558.3,2557.8,2.777]
[1747579624737,0.78156,2558.2,2557.8,10.31375737]
[1747579625041,3.2078,2558.3,2557.8,9.53210737]
[1747579625338,3.2889,2558.5,2557.8,9.53210737]
[1747579625339,0.78159,2558.1,2557.8,9.53210737]
[1747579625540,3.2078,2558.2,2557.8,10.31377737]
[1747579625541,3.98937,2558.2,2557.8,10.31377737]
[1747579625840,10.346,2558.4,2557.8,9.53210737]
[1747579626031,10.346,2558.4,2557.8,13.52155737]
[1747579626237,3.2078,2558.8,2558.2,0.78153]
[1747579626439,0.78148,2558.4,2558.3,2.777]
[1747579627540,14.1088,2558.8,2558.1,3.2078]
[1747579627742,3.7628,2558.8,2558.1,3.2078]
[1747579628036,0.78139,2558.7,2558.3,0.78151]
[1747579628245,3.2078,2558.8,2558.4,2.9218]
[1747579628442,3.98918,2558.8,2558.4,2.9218]
[1747579628639,3.2078,2558.8,2558.4,9.67690737]
[1747579628846,0.7814,2558.7,2558.4,10.45837737]
[1747579629247,3.2078,2558.8,2558.4,9.67690737]
[1747579629448,0.78141,2558.7,2558.4,9.67690737]
[1747579629645,3.2078,2558.8,2558.4,9.67690737]
[1747579629844,0.78141,2558.7,2558.4,9.67690737]
[1747579630044,3.98918,2558.8,2558.4,10.45838737]
[1747579630246,0.78139,2558.7,2558.4,10.45838737]
[1747579630448,0.7814,2558.7,2558.4,9.67690737]
[1747579630747,3.2078,2558.8,2558.4,9.67690737]
[1747579631047,0.78145,2558.5,2558.4,2.9218]
[1747579631442,0.78145,2558.6,2558.4,2.9218]
[1747579631643,3.2078,2558.8,2558.4,9.67690737]
[1747579631949,3.2078,2558.8,2558.4,12.88470737]
[1747579632448,0.78144,2558.6,2558.4,9.67690737]
[1747579632648,0.78145,2558.5,2558.4,2.9218]
[1747579633938,3.98925,2558.5,2558.4,2.9218]
[1747579634145,0.78167,2557.8,2557.7,2.9519]
[1747579634348,0.78173,2557.6,2557.5,5.998]
[1747579634550,0.78173,2557.6,2557.5,12.75310737]
[1747579634749,0.78171,2557.7,2557.5,12.75310737]
[1747579634951,1.95398,2558.1,2557.5,12.75310737]
[1747579634952,20.678,2558.1,2557.5,12.75310737]
[1747579635245,1.95349,2558.7,2557.8,3.2078]
[1747579635448,10.343,2558.7,2557.8,3.98946]
[1747579635653,10.343,2558.7,2557.9,2.7246]
[1747579635948,0.78156,2558.2,2558.0,0.12214762]
[1747579636144,0.5563,2558.7,2558.1,2.84674762]
[1747579636346,0.7815,2558.4,2558.2,6.18074762]
[1747579636547,0.78148,2558.4,2558.3,3.07824762]
[1747579637049,0.78148,2558.4,2558.3,2.9561]
[1747579637250,0.78148,2558.4,2558.3,3.0782626]
[1747579637452,1.33778,2558.4,2558.3,2.9561]
[1747579637651,0.78148,2558.4,2558.3,2.9561]
[1747579637949,0.78167,2557.8,2557.7,2.8508]
[1747579638152,0.78167,2557.8,2557.7,0.12217488]
[1747579639247,2.15547,2557.8,2557.7,0.12217488]
[1747579639554,1.95425,2557.7,2557.1,5.6489]
[1747579639751,0.78184,2557.3,2557.2,0.12218967]
[1747579640047,3.98964,2557.3,2557.2,9.67e-06]
[1747579640254,14.33364,2557.3,2557.2,9.67e-06]
[1747579640956,5.36344,2557.3,2557.2,0.25663458]
[1747579641149,0.78197,2556.8,2556.7,2.8865]
[1747579641353,0.78192,2557.0,2556.7,2.8865]
[1747579641552,3.2078,2557.3,2556.7,9.64160737]
[1747579641753,0.7819,2557.1,2556.8,40.8]
[1747579641946,0.78191,2557.0,2556.9,2.8865]
[1747579642148,3.2078,2557.3,2556.9,2.8865]
[1747579642346,0.78188,2557.2,2556.9,9.64160737]
[1747579642541,10.345,2557.5,2557.0,2.9331]
[1747579642542,0.78177,2557.5,2557.0,2.9331]
[1747579642759,6.0036,2557.9,2557.1,5.6307]
[1747579642946,0.78175,2557.6,2557.1,5.6307]
[1747579643147,0.78176,2557.5,2557.3,0.78181]
[1747579643344,0.78176,2557.5,2557.4,2.7481]
[1747579643752,0.78176,2557.5,2557.4,9.50320737]
[1747579644150,0.78174,2557.6,2557.4,9.50320737]
[1747579644454,3.2078,2558.2,2557.4,9.50320737]
[1747579644665,0.782,2556.7,2556.1,3.00487623]
[1747579644952,0.782,2556.7,2556.4,5.4456265]
[1747579645148,3.2078,2557.2,2556.6,47.32472324]
[1747579645344,3.32906,2557.4,2556.7,2.928]
[1747579645550,0.78196,2556.9,2556.7,2.928]
[1747579645748,3.2078,2557.5,2556.8,3.2078]
[1747579646048,0.78191,2557.0,2556.9,5.6565]
[1747579646254,0.78191,2557.0,2556.9,5.92017167]
[1747579646759,0.78188,2557.2,2556.9,11.70210167]
[1747579646958,0.78188,2557.2,2556.9,5.92017167]
[1747579647159,0.78187,2557.2,2557.0,4.49882978]
[1747579647355,0.78177,2557.5,2557.2,0.78183]
[1747579647657,3.2078,2557.8,2557.3,5.6566]
[1747579647958,0.78172,2557.7,2557.4,0.78178]
[1747579648158,3.2078,2557.8,2557.5,2.928]
[1747579648159,0.78173,2557.6,2557.5,2.928]
[1747579648350,0.78173,2557.6,2557.5,17.65508322]
[1747579648673,0.78173,2557.6,2557.5,2.928]
[1747579649256,0.78173,2557.6,2557.5,43.728]
[1747579650858,0.7817,2557.7,2557.5,43.728]
[1747579651053,3.2078,2557.8,2557.6,2.817]
[1747579651254,3.98947,2557.8,2557.7,2.838]
[1747579651561,3.2078,2557.8,2557.7,2.838]
[1747579651859,3.98947,2557.8,2557.7,2.838]
[1747579652060,3.98947,2557.8,2557.7,2.96016855]
[1747579652853,3.98947,2557.8,2557.7,3.227877]
[1747579653053,3.98947,2557.8,2557.7,2.96016855]
[1747579654361,3.98947,2557.8,2557.7,2.96017793]
[1747579654866,3.98947,2557.8,2557.7,0.12217793]
[1747579655060,0.78176,2557.5,2557.4,2.7204]
[1747579655266,3.98956,2557.5,2557.4,2.7204]
[1747579655963,3.98956,2557.5,2556.8,4.33832324]
[1747579655964,0.78194,2556.9,2556.8,4.33832324]
[1747579656157,0.78206,2556.5,2556.4,0.48689507]
[1747579656359,0.78228,2555.8,2555.7,4.39149666]
[1747579656663,3.2078,2556.5,2555.7,45.19149666]
[1747579656861,3.2078,2556.5,2555.7,45.46058074]
[1747579657163,0.78228,2555.8,2555.7,45.46058074]
[1747579657365,0.78226,2555.9,2555.7,45.46058074]
[1747579657561,0.78227,2555.9,2555.7,45.46058074]
[1747579657758,1.2762,2556.4,2555.7,44.27688408]
[1747579657964,3.2078,2556.5,2555.7,44.27688408]
[1747579658164,0.78217,2556.2,2555.7,44.27688408]
[1747579658363,0.78214,2556.3,2556.0,3.2078]
[1747579658562,3.2078,2556.5,2556.0,3.2078]
[1747579658862,3.2078,2556.5,2556.2,0.78215]
[1747579659060,3.2078,2556.5,2556.3,2.8139]
[1747579659255,3.2078,2557.4,2556.4,3.2078]
[1747579659464,0.78186,2557.2,2556.7,3.2078]
[1747579659768,0.78194,2556.9,2556.8,2.8139]
[1747579659968,3.98974,2556.9,2556.8,2.8139]
[1747579660561,5.26434,2556.9,2556.8,2.8139]
[1747579660861,3.98974,2556.9,2556.8,2.8139]
[1747579661062,3.2078,2556.9,2556.8,3.59587]
[1747579661373,3.2078,2556.9,2556.8,2.8139]
[1747579661561,3.98974,2556.9,2556.8,43.6139]
[1747579662570,3.2078,2557.2,2556.8,43.6139]
[1747579662867,0.78194,2556.9,2556.8,43.6139]
[1747579663266,0.78194,2556.9,2555.6,7.81182]
[1747579663267,3.2078,2556.9,2556.1,3.2078]
[1747579663468,0.78209,2556.4,2556.3,2.8563]
[1747579663660,3.98989,2556.4,2556.3,2.8563]
[1747579663965,3.2078,2556.4,2555.8,1.14855904]
[1747579664271,3.98991,2556.4,2556.0,0.78222]
[1747579664468,10.646,2556.6,2556.1,2.8937]
[1747579664771,0.78214,2556.3,2556.1,2.8937]
[1747579665068,0.78216,2556.2,2556.1,2.8937]
[1747579666469,15.526,2556.2,2555.4,3.2078]
[1747579666666,0.78228,2555.8,2555.7,2.6567]
[1747579667063,0.78228,2555.8,2555.7,2.77897545]
[1747579667371,0.78228,2555.8,2555.7,43.57897545]
[1747579667668,0.7824,2555.4,2555.3,1.14855904]
[1747579667864,25.1512,2555.4,2555.3,1.14855904]
[1747579668068,30.1512,2555.4,2555.3,0.34118904]
[1747579668266,0.78258,2554.8,2554.7,2.92072532]
[1747579668467,3.99037,2554.9,2554.7,2.92072532]
[1747579668678,3.2078,2554.9,2554.7,2.92072532]
[1747579668873,3.2078,2555.2,2554.7,2.92072532]
[1747579669069,0.7825,2555.1,2554.7,3.70332532]
[1747579669273,0.78252,2555.0,2554.8,2.6567]
[1747579669572,3.2078,2555.2,2554.8,2.6567]
[1747579669773,0.78255,2554.9,2554.8,2.6567]
[1747579669972,4.4832,2555.2,2554.8,2.6567]
[1747579670174,0.78249,2555.1,2554.8,2.6567]
[1747579670373,0.78255,2554.9,2554.8,2.6567]
[1747579670668,3.99035,2554.9,2554.8,2.6567]
[1747579670869,3.2078,2555.2,2554.8,2.6567]
[1747579671073,3.2078,2555.2,2555.0,0.78251]
[1747579671269,3.2078,2555.2,2555.1,2.9093]
[1747579671474,1.2754,2555.8,2555.1,2.9093]
[1747579671774,13.8568,2555.9,2555.2,2.8767]
[1747579671976,13.8568,2555.9,2555.4,0.78238]
[1747579672164,0.78231,2555.7,2555.5,44.49166]
[1747579672368,3.2078,2555.9,2555.7,0.7823]
[1747579672668,3.2078,2556.3,2555.9,0.78222]
[1747579672871,0.78219,2556.1,2556.0,2.6734]
[1747579673769,0.78234,2555.6,2555.5,40.8]
[1747579674275,10.65,2556.2,2555.6,0.78234]
[1747579674276,3.2078,2556.2,2555.6,0.78234]
[1747579674476,13.8578,2556.2,2555.5,41.58236]
[1747579674679,13.8578,2556.2,2555.6,0.78233]
[1747579674876,3.2078,2556.2,2555.9,0.78224]
[1747579675069,3.98997,2556.2,2555.8,0.78226]
[1747579675271,3.98997,2556.2,2555.9,3.45564]
[1747579675579,3.98997,2556.2,2555.9,2.6734]
[1747579675763,3.2078,2556.2,2555.9,2.6734]
[1747579675968,0.78221,2556.1,2555.9,2.6734]
[1747579676167,0.78221,2556.1,2555.9,3.45564]
[1747579676386,0.78221,2556.1,2555.9,2.6734]
[1747579676677,0.78221,2556.1,2555.9,3.45564]
[1747579676976,0.78221,2556.1,2555.9,2.6734]
[1747579677173,0.78222,2556.0,2555.9,2.6734]
[1747579677581,0.7822,2556.1,2555.9,3.45564]
[1747579677875,3.2078,2556.2,2555.9,3.45563]
[1747579678075,0.7822,2556.1,2555.9,3.45563]
[1747579678580,0.78222,2556.0,2555.9,2.6734]
[1747579679674,0.78222,2556.0,2555.9,2.79565889]
[1747579680079,0.78221,2556.1,2555.9,2.79565889]
[1747579680377,3.98997,2556.2,2556.0,0.90445889]
[1747579680571,3.98997,2556.2,2556.1,2.86235889]
[1747579680971,3.98997,2556.2,2556.1,2.86235416]
[1747579681978,12.37813,2556.6,2556.1,3.64454416]
[1747579681979,13.6308,2556.6,2556.1,3.64454416]
[1747579682280,0.78213,2556.3,2556.2,0.12225416]
[1747579682476,0.78213,2556.3,2556.2,2.89674995]
[1747579683272,3.2078,2556.9,2556.3,1.95532]
[1747579683478,0.78199,2556.8,2556.6,0.78201]
[1747579683674,0.78199,2556.8,2556.7,2.89674995]
[1747579683873,0.78199,2556.8,2556.7,43.69674995]
[1747579684477,0.78199,2556.8,2556.7,2.89674995]
[1747579684880,17.47759,2556.8,2556.7,0.12224995]
[1747579685082,0.78213,2556.3,2556.2,2.8671]
[1747579686181,3.98993,2556.3,2556.2,2.8671]
[1747579687979,3.2078,2556.3,2556.2,2.8671]
[1747579688181,3.2078,2556.3,2556.2,3.64926]
[1747579688979,3.2078,2556.6,2556.5,0.78206]
[1747579689188,3.2078,2557.0,2556.4,5.16301]
[1747579689380,0.78194,2556.9,2556.8,0.78196]
[1747579689681,0.78194,2556.9,2556.5,5.6268]
[1747579690074,14.903,2557.5,2556.5,5.6268]
[1747579690277,0.78191,2557.0,2556.9,0.78192]
[1747579690475,3.2078,2557.9,2557.0,1.95478]
[1747579690674,3.2078,2557.9,2557.3,3.2078]
[1747579690880,3.2078,2557.9,2557.8,0.78167]
[1747579691075,3.2078,2557.9,2557.4,20.27898088]
[1747579691390,0.78175,2557.6,2557.4,6.40857]
[1747579691584,0.78176,2557.5,2557.4,5.6268]
[1747579691887,3.2078,2558.2,2557.4,5.6268]
[1747579692076,0.7816,2558.1,2557.7,3.2078]
[1747579692282,3.2078,2558.2,2558.1,0.78157]
[1747579693479,5.38293504,2559.0,2558.1,14.39734157]
[1747579693678,6.16423504,2559.0,2558.9,3.2078]
[1747579694384,0.00525668,2559.0,2558.9,3.98913]
[1747579694576,0.00525668,2559.0,2558.9,6.65243]
[1747579694784,3.2078,2559.8,2558.9,10.8711]
[1747579694971,0.07813415,2559.7,2558.9,7.02023944]
[1747579695179,6.24315038,2560.1,2559.6,3.2078]
[1747579695378,3.03535038,2560.1,2559.6,3.2078]
[1747579695580,0.78109,2559.7,2559.6,3.2078]
[1747579696085,0.78107,2559.8,2559.6,3.2078]
[1747579696383,0.78101,2560.0,2559.6,3.2078]
[1747579696577,0.78101,2560.0,2559.6,3.9889]
[1747579696773,0.78105,2559.9,2559.7,2.6953]
[1747579696971,0.48023969,2560.1,2559.7,2.6953]
[1747579697281,0.78104,2559.9,2559.7,2.6953]
[1747579697484,0.78106,2559.8,2559.7,2.6953]
[1747579697879,0.78103,2559.9,2559.7,2.6953]
[1747579698077,0.78106,2559.8,2559.7,2.6953]
[1747579698278,0.48023969,2560.1,2559.7,2.6953]
[1747579698479,1.26120969,2560.1,2560.0,3.2078]
[1747579700782,0.78106,2559.8,2559.7,5.9031]
[1747579701385,0.48023969,2560.1,2559.7,5.9031]
[1747579701691,0.78102,2560.0,2559.8,2.7896]
[1747579701984,0.48023969,2560.1,2559.8,2.7896]
[1747579702386,0.48023969,2560.1,2560.0,3.2078]
[1747579703084,0.48023969,2560.1,2560.0,8.98879]
[1747579703281,3.2078,2561.2,2560.9,0.7807]
[1747579703477,0.01004937,2561.3,2560.7,10.33]
[1747579703478,0.78075,2560.8,2560.7,10.33]
[1747579703682,0.01004937,2561.3,2560.6,2.7645]
[1747579703683,0.78078,2560.7,2560.6,2.7645]
[1747579703982,5.15968,2560.8,2560.2,3.2078]
[1747579704184,0.78087,2560.4,2560.3,2.7645]
[1747579704382,0.7809,2560.3,2560.2,3.2078]
[1747579704582,0.78093,2560.2,2560.1,2.7645]
[1747579705980,5.1601,2560.3,2559.7,2.8538]
[1747579706183,0.78103,2559.9,2559.8,2.8995]
[1747579706692,0.78098,2560.1,2559.8,3.68055]
[1747579706987,0.78102,2559.9,2559.8,2.8995]
[1747579707186,0.78108,2559.7,2559.6,3.2078]
[1747579707889,2.7361,2560.4,2559.6,3.2078]
[1747579708087,141.5630439,3424.7,2559.9,3.2078]
[1747579708088,12.9851,2560.5,2559.9,3.2078]
[1747579708290,0.78094,2560.2,2560.0,2.8995]
[1747579708509,2.6581,2560.5,2560.0,2.8995]
[1747579708687,0.78087,2560.4,2560.1,0.78096]
[1747579708888,0.7809,2560.3,2560.2,2.8995]
[1747579709082,2.6581,2560.5,2560.2,2.8995]
[1747579709286,0.7809,2560.3,2560.2,2.8995]
[1747579709487,3.9887,2560.3,2560.2,2.8995]
[1747579709687,0.78099,2560.0,2559.9,3.2078]
[1747579709994,0.78106,2559.8,2559.6,3.2078]
[1747579710202,0.78105,2559.9,2559.6,3.9889]
[1747579710492,0.78092,2560.3,2560.0,0.78098]
[1747579710687,5.15982,2560.7,2560.0,3.2078]
[1747579710888,0.78092,2560.3,2560.1,0.78096]
[1747579711188,0.78086,2560.5,2560.2,3.50342]
[1747579711406,10.326,2561.0,2560.3,5.9303]
[1747579711589,0.78079,2560.7,2560.6,3.2078]
[1747579712094,0.78077,2560.8,2560.6,3.2078]
[1747579712290,0.78075,2560.8,2560.7,2.8482]
[1747579712704,2.8152,2561.0,2560.7,2.8482]
[1747579712898,0.78075,2560.8,2560.7,2.8482]
[1747579713093,0.01004937,2561.3,2560.7,2.8482]
[1747579713291,0.78068,2561.1,2560.8,0.78074]
[1747579713494,3.2078,2561.1,2560.3,3.2078]
[1747579713794,2.9204,2561.0,2560.5,0.78083]
[1747579713988,0.78079,2560.7,2560.6,2.8482]
[1747579714189,0.78079,2560.7,2560.3,3.2078]
[1747579714190,0.78087,2560.4,2560.3,3.2078]
[1747579714696,0.7809,2560.3,2560.2,2.8482]
[1747579714895,2.9204,2560.6,2560.2,2.8482]
[1747579715093,12.27667,2561.1,2560.3,3.32984486]
[1747579715288,0.78084,2560.5,2560.4,2.9693]
[1747579715489,3.2078,2560.8,2560.4,3.09134309]
[1747579715796,0.78084,2560.5,2560.4,2.9693]
[1747579716200,0.78096,2560.1,2560.0,3.2078]
[1747579716397,0.78096,2560.1,2560.0,6.29915647]
[1747579716593,0.78095,2560.2,2560.0,6.29915647]
[1747579716793,0.78095,2560.2,2560.1,0.12205647]
[1747579716994,0.78093,2560.3,2560.1,0.12205647]
[1747579717192,0.78093,2560.3,2560.2,3.09135647]
[1747579717495,0.7809,2560.3,2560.2,3.09135647]
[1747579717685,2.8966,2560.6,2560.2,3.09135647]
[1747579717889,2.8966,2560.6,2560.3,0.12204951]
[1747579718089,0.78084,2560.5,2560.4,3.09134951]
[1747579718289,0.78084,2560.5,2560.4,3.09134927]
[1747579718487,0.78084,2560.5,2560.4,3.09134922]
[1747579718689,0.78084,2560.5,2560.4,0.12204922]
[1747579719500,0.78103,2559.9,2559.8,2.9743]
[1747579719704,3.2078,2560.2,2559.8,2.9743]
[1747579719997,0.78097,2560.1,2559.9,0.78101]
[1747579720197,0.78097,2560.1,2560.0,2.9743]
[1747579720898,0.78106,2559.8,2559.7,3.2078]
[1747579721108,2.9012,2560.0,2559.7,3.2078]
[1747579721295,0.78106,2559.8,2559.7,3.2078]
[1747579722000,0.78106,2559.8,2559.7,4.37135668]
[1747579722199,0.78106,2559.8,2559.7,1.16355668]
[1747579722502,3.71556,2559.8,2559.7,1.16355668]
[1747579723600,3.2078,2560.1,2559.4,6.1518]
[1747579723801,0.7811,2559.7,2559.6,2.944]
[1747579724701,0.78108,2559.8,2559.6,4.11099007]
[1747579724896,0.78108,2559.8,2559.7,2.9476]
[1747579725302,1.95212,2560.5,2559.7,6.1554]
[1747579725497,0.78106,2559.8,2559.7,6.1554]
[1747579725699,0.78106,2559.8,2559.7,2.9476]
[1747579726499,0.78106,2559.8,2559.7,4.11459007]
[1747579728515,0.78106,2559.8,2559.7,1.16699007]
[1747579728705,3.98886,2559.8,2559.7,1.16699007]
[1747579729004,6.89906,2559.8,2559.7,1.16699007]
[1747579729206,11.89906,2559.8,2559.7,1.16699007]
[1747579729615,11.89906,2559.8,2559.7,0.05076007]
[1747579729806,0.78109,2559.7,2559.6,1.17638631]
[1747579730004,3.69129,2559.7,2559.6,1.17638631]
[1747579730203,12.26843,2560.1,2559.6,1.17638631]
[1747579730204,0.06800162,2562.0,2559.6,16.50238631]
[1747579730411,2.9102,2561.9,2561.2,3.2078]
[1747579730604,2.9102,2561.9,2561.8,3.2078]
[1747579730605,3.69062,2561.9,2561.8,3.2078]
[1747579730912,2.9102,2561.9,2561.8,3.98825]
[1747579731103,6.65820858,2562.3,2561.8,3.2078]
[1747579731304,6.65820858,2562.3,2562.2,3.2078]
[1747579731305,9.86600858,2562.3,2562.2,3.2078]
[1747579731506,6.0431,2562.3,2562.2,3.3297633]
[1747579732113,3.2078,2562.3,2562.2,3.3297633]
[1747579732309,0.00893753,2562.4,2562.2,3.3297633]
[1747579732506,3.29478935,2562.4,2562.3,0.1219633]
[1747579732720,3.29478935,2562.4,2562.3,2.9753633]
[1747579732911,0.08698935,2562.4,2562.3,2.9753633]
[1747579733209,3.2078,2562.4,2562.3,6.03335591]
[1747579733414,1.95013,2563.1,2562.3,6.03335591]
[1747579733611,0.78017,2562.7,2562.6,3.2078]
[1747579733833,0.85821268,2562.7,2562.6,3.32975591]
[1747579734014,4.06601268,2562.7,2562.6,3.32975591]
[1747579734217,4.06601268,2562.7,2562.6,0.12195591]
[1747579734707,15.40104268,2562.7,2561.8,4.34581447]
[1747579734909,0.7804,2562.0,2561.9,2.9793]
[1747579735307,0.78038,2562.1,2561.9,2.9793]
[1747579735513,0.78039,2562.0,2561.9,2.9793]
[1747579735708,0.78042,2561.9,2561.8,4.34581447]
[1747579736012,3.49122,2561.9,2561.8,4.34581447]
[1747579736515,0.78042,2561.9,2561.8,4.34581447]
[1747579736713,0.78041,2562.0,2561.8,4.34581447]
[1747579736916,2.7108,2562.3,2561.9,3.0724]
[1747579737111,10.501,2562.3,2562.1,3.2078]
[1747579737306,3.1715,2562.6,2562.2,3.0724]
[1747579737517,3.2078,2563.5,2562.4,3.2078]
[1747579737717,1.94895,2564.7,2563.6,0.77988]
[1747579737909,3.1715,2564.7,2564.4,3.2078]
[1747579738115,3.82290858,2564.8,2564.5,3.0724]
[1747579738311,5.37767836,2565.3,2564.7,3.2078]
[1747579738621,0.07796663,2565.2,2565.1,3.2078]
[1747579739511,0.85737663,2565.2,2565.1,3.2078]
[1747579740014,0.77944,2565.1,2565.0,1.21392205]
[1747579740243,3.2068,2565.1,2564.3,3.2078]
[1747579740515,3.2078,2564.9,2564.3,3.2078]
[1747579740712,11.011,2565.0,2564.3,3.2078]
[1747579740916,0.77966,2564.4,2564.3,3.2078]